bitfinex/quotes_SOLUSD_20250924
["timestamp","ask_amount","ask_price","bid_price","bid_amount"]
[1758690312336,1.20053954,208.62,208.55,0.69]
[1758690313139,4.79363405,208.61,208.55,0.69]
[1758690313543,11.98151706,208.66,208.57,3.68414381]
[1758690313749,26.0,208.63,208.58,0.68]
[1758690313951,1.20053129,208.62,208.58,0.68]
[1758690314159,27.20053129,208.62,208.56,3.68414381]
[1758690314337,26.0,208.62,208.56,4.36414381]
[1758690314657,26.0,208.62,208.56,2.21243955]
[1758690315359,30.79347497,208.62,208.52,37.96]
[1758690315544,1.86053971,208.61,208.52,37.96]
[1758690315855,1.86053971,208.6,208.51,2.41243955]
[1758690316061,1.86053971,208.59,208.51,2.41243955]
[1758690316248,1.20053971,208.58,208.52,1.53243955]
[1758690316434,0.66,208.59,208.52,1.53243955]
[1758690316862,5.45419507,208.59,208.52,7.00798382]
[1758690317042,1.20075983,208.58,208.52,7.00798382]
[1758690317451,5.45419507,208.59,208.52,7.00798382]
[1758690317755,1.20076033,208.58,208.52,7.00798382]
[1758690317959,5.99511397,208.58,208.52,7.00798382]
[1758690318162,4.79435364,208.58,208.52,7.00798382]
[1758690319047,5.45410349,208.59,208.52,7.00798382]
[1758690319251,1.20075991,208.58,208.52,7.00798382]
[1758690319655,1.20075991,208.58,208.53,0.68]
[1758690319963,1.20075991,208.58,208.54,0.68]
[1758690320164,5.45410349,208.59,208.54,0.68]
[1758690321167,26.68,208.62,208.55,0.72]
[1758690321360,27.20067499,208.61,208.55,0.72]
[1758690321559,1.20067499,208.6,208.55,0.72]
[1758690321757,1.20067499,208.6,208.55,1.53243955]
[1758690321958,26.0,208.62,208.56,0.72]
[1758690322181,135.10061367,208.61,208.57,4.79455338]
[1758690322371,26.0,208.62,208.58,2.25243955]
[1758690322549,26.0,208.62,208.59,0.72]
[1758690322745,31.47344552,208.62,208.57,0.72]
[1758690323058,5.47344552,208.62,208.57,0.72]
[1758690323254,1.20061813,208.61,208.57,0.72]
[1758690323769,1.88061813,208.61,208.55,4.79500357]
[1758690324175,6.6744003,208.61,208.55,4.79500357]
[1758690324471,4.79378217,208.61,208.55,5.51500357]
[1758690324658,4.79378217,208.61,208.55,7.04744312]
[1758690325051,1.20067913,208.6,208.55,7.04744312]
[1758690325253,4.79378217,208.61,208.56,0.72]
[1758690325455,26.0,208.62,208.56,4.79477894]
[1758690325771,0.68,208.61,208.54,0.72]
[1758690326067,1.2005999,208.61,208.55,1.53243955]
[1758690326242,1.2005999,208.61,208.56,2.25243955]
[1758690326447,26.0,208.62,208.58,1.53243955]
[1758690326662,26.0,208.62,208.59,2.25243955]
[1758690326867,26.0,208.62,208.6,0.72]
[1758690327067,134.58,208.67,208.61,0.72]
[1758690327270,1.20052956,208.66,208.61,5.51343139]
[1758690327459,1.20052956,208.66,208.64,1.53243955]
[1758690327773,0.68,208.71,208.64,1.53243955]
[1758690327968,1.20022698,208.7,208.64,2.25243955]
[1758690328267,1.20022698,208.69,208.64,2.25243955]
[1758690328570,26.0,208.68,208.65,5.51271507]
[1758690328944,26.0,208.68,208.63,4.79302489]
[1758690329141,1.88033025,208.67,208.59,43.47409367]
[1758690329341,0.68,208.67,208.6,0.72]
[1758690329573,0.68,208.67,208.6,2.25243955]
[1758690329744,0.68,208.67,208.61,1.53243955]
[1758690329951,1.20029703,208.67,208.61,2.25243955]
[1758690330156,0.68,208.69,208.61,2.25243955]
[1758690330357,1.20031381,208.68,208.62,1.53243955]
[1758690330567,26.0,208.66,208.61,2.25243955]
[1758690330950,26.0,208.66,208.61,1.53243955]
[1758690331146,30.79225571,208.67,208.62,0.72]
[1758690331870,31.47225571,208.67,208.62,0.72]
[1758690332681,30.79225571,208.67,208.61,1.53243955]
[1758690332849,31.47225571,208.67,208.61,1.53243955]
[1758690333185,1.20033101,208.66,208.61,1.53243955]
[1758690333484,26.68,208.65,208.6,1.53243955]
[1758690333664,0.68,208.64,208.58,4.79432352]
[1758690333870,1.88045157,208.64,208.57,2.25243955]
[1758690334070,0.68,208.64,208.57,2.25243955]
[1758690334589,0.68,208.64,208.57,0.72]
[1758690334760,31.4731254,208.64,208.58,1.53243955]
[1758690335764,26.0,208.62,208.52,0.72]
[1758690336062,1.20072496,208.61,208.55,1.53243955]
[1758690336289,1.20072496,208.61,208.58,1.53243955]
[1758690336586,26.0,208.62,208.58,1.53243955]
[1758690336587,26.0,208.62,208.58,2.25243955]
[1758690336791,1.88061796,208.61,208.56,1.53243955]
[1758690336955,1.20061796,208.61,208.54,1.53243955]
[1758690337156,0.68,208.6,208.54,1.53243955]
[1758690337759,5.47401577,208.6,208.54,1.53243955]
[1758690337968,5.47401577,208.6,208.54,6.32764193]
[1758690338557,5.47401577,208.6,208.54,4.79520238]
[1758690338760,1.88075042,208.59,208.53,1.53243955]
[1758690339379,26.0,208.57,208.53,1.53243955]
[1758690339770,31.4745976,208.57,208.52,1.53243955]
[1758690339969,31.4745976,208.57,208.51,0.92]
[1758690340170,4.79424624,208.59,208.52,2.25243955]
[1758690340380,1.20084758,208.58,208.53,1.53243955]
[1758690340578,0.68,208.6,208.55,1.53243955]
[1758690340763,26.0,208.59,208.55,0.72]
[1758690340966,26.0,208.59,208.51,4.99592774]
[1758690340967,26.68,208.59,208.53,1.53243955]
[1758690341670,26.68,208.59,208.53,2.25243955]
[1758690342071,26.0,208.59,208.54,6.32768266]
[1758690342270,26.0,208.59,208.56,1.53243955]
[1758690342461,26.0,208.59,208.57,0.72]
[1758690343478,26.0,208.59,208.55,2.25243955]
[1758690343679,26.0,208.59,208.56,0.72]
[1758690343973,26.0,208.59,208.55,1.53243955]
[1758690344165,26.0,208.59,208.54,6.32768266]
[1758690344371,26.0,208.59,208.54,7.04768266]
[1758690344579,4.79396016,208.6,208.54,6.32768266]
[1758690344769,26.0,208.58,208.55,0.72]
[1758690345173,31.47364545,208.61,208.55,0.72]
[1758690346281,26.0,208.53,208.51,0.2]
[1758690346800,26.68,208.55,208.51,0.2]
[1758690348271,31.4751562,208.55,208.51,0.2]
[1758690348470,30.7951562,208.55,208.51,0.2]
[1758690348673,0.68,208.54,208.51,0.2]
[1758690349089,0.68,208.53,208.51,0.2]
[1758690349288,0.68,208.52,208.51,0.2]
[1758690350296,5.47570305,208.52,208.51,0.2]
[1758690351781,26.69,208.52,208.51,0.2]
[1758690352500,31.48570305,208.52,208.51,0.2]
[1758690352704,45.08129706,208.52,208.51,0.2]
[1758690352906,31.07055468,208.52,208.46,0.2]
[1758690353079,39.59559401,208.48,208.46,0.2]
[1758690353286,77.63559401,208.48,208.46,0.2]
[1758690353485,0.62,208.47,208.46,0.2]
[1758690354393,5.41685326,208.47,208.46,0.2]
[1758690355384,5.41685326,208.47,208.46,1e-08]
[1758690357587,4.79685326,208.47,208.46,1e-08]
[1758690359475,5.41685326,208.47,208.46,1e-08]
[1758690361483,56.99244727,208.47,208.46,1e-08]
[1758690361686,19.01244727,208.47,208.46,1e-08]
[1758690361894,56.99244727,208.47,208.46,1e-08]
[1758690362488,19.01244727,208.47,208.46,1e-08]
[1758690362708,56.99244727,208.47,208.46,1e-08]
[1758690365808,56.37244727,208.47,208.46,1e-08]
[1758690365988,56.99244727,208.47,208.46,1e-08]
[1758690368612,18.39244727,208.47,208.46,1e-08]
[1758690368789,56.37244727,208.47,208.46,1e-08]
[1758690369511,18.39244727,208.47,208.46,1e-08]
[1758690369695,56.37244727,208.47,208.46,1e-08]
[1758690370291,82.37244727,208.47,208.46,1e-08]
[1758690375409,82.99244727,208.47,208.46,1e-08]
[1758690375606,82.37244727,208.47,208.46,1e-08]
[1758690375803,56.37244727,208.47,208.46,1e-08]
[1758690376208,56.37244727,208.47,208.46,0.67000001]
[1758690376412,44.39244727,208.47,208.46,0.67000001]
[1758690376615,56.37244727,208.47,208.46,1e-08]
[1758690378930,56.99244727,208.47,208.46,1e-08]
[1758690379531,56.37244727,208.47,208.46,1e-08]
[1758690380909,18.39244727,208.47,208.46,0.69000001]
[1758690381117,56.37244727,208.47,208.46,1e-08]
[1758690381328,13.59559401,208.47,208.46,0.69000001]
[1758690381501,18.39244727,208.47,208.46,0.69000001]
[1758690381708,4.79664961,208.48,208.46,0.69000001]
[1758690381907,13.59559401,208.47,208.46,0.69000001]
[1758690382630,13.59559401,208.48,208.46,0.69000001]
[1758690382825,18.39240223,208.48,208.46,0.69000001]
[1758690383207,13.59559401,208.49,208.46,0.69000001]
[1758690383629,26.0,208.47,208.46,0.69000001]
[1758690383821,26.0,208.47,208.46,1e-08]
[1758690384032,39.59559401,208.47,208.46,1e-08]
[1758690384420,39.59559401,208.47,208.46,0.69000001]
[1758690385030,44.39244727,208.47,208.46,0.69000001]
[1758690385827,44.39244727,208.47,208.46,1e-08]
[1758690386031,82.37244727,208.47,208.46,1e-08]
[1758690387121,82.99244727,208.47,208.46,1e-08]
[1758690388214,18.39244727,208.47,208.46,0.69000001]
[1758690388625,56.37244727,208.47,208.46,1e-08]
[1758690389626,44.39244727,208.47,208.46,0.69000001]
[1758690389831,18.39244727,208.47,208.46,0.69000001]
[1758690390037,13.59559401,208.47,208.46,0.69000001]
[1758690390540,39.59559401,208.47,208.46,0.69000001]
[1758690391449,16.78459209,208.53,208.46,0.69000001]
[1758690391621,51.57559401,208.52,208.46,0.69000001]
[1758690391819,13.59559401,208.48,208.46,0.69000001]
[1758690392249,13.59559401,208.51,208.46,0.69000001]
[1758690392545,26.0,208.48,208.46,0.69000001]
[1758690393330,30.79667557,208.48,208.46,1e-08]
[1758690393533,44.39226958,208.48,208.47,0.69]
[1758690395724,13.59559401,208.47,208.46,1e-08]
[1758690395924,39.59559401,208.47,208.46,1e-08]
[1758690396533,39.59559401,208.47,208.46,0.69000001]
[1758690396830,39.59559401,208.47,208.46,1e-08]
[1758690397440,44.39244727,208.47,208.46,1e-08]
[1758690399062,19.01244727,208.47,208.46,1e-08]
[1758690399348,22.24519796,208.47,208.46,1e-08]
[1758690401758,21.62519796,208.47,208.46,1e-08]
[1758690402141,56.37244727,208.47,208.46,1e-08]
[1758690402453,59.60519796,208.47,208.46,1e-08]
[1758690402658,18.39244727,208.47,208.46,0.69000001]
[1758690404637,13.59559401,208.47,208.46,0.69000001]
[1758690404938,18.39244727,208.47,208.46,0.69000001]
[1758690405531,44.39244727,208.47,208.46,0.69000001]
[1758690405736,18.39244727,208.47,208.46,0.69000001]
[1758690406735,42.77625538,208.5,208.46,0.69000001]
[1758690406937,13.59559401,208.49,208.46,0.69000001]
[1758690407765,39.59559401,208.47,208.46,0.69000001]
[1758690407967,39.59559401,208.47,208.46,1e-08]
[1758690408751,44.39244727,208.47,208.46,1e-08]
[1758690409665,178.91244727,208.47,208.46,1e-08]
[1758690409862,178.29244727,208.47,208.46,1e-08]
[1758690410374,216.25244727,208.47,208.46,1e-08]
[1758690411364,216.25244727,208.47,208.46,0.68000001]
[1758690412466,216.25244727,208.47,208.46,1e-08]
[1758690412864,178.29244727,208.47,208.46,0.68000001]
[1758690413049,86.20560725,208.47,208.46,1e-08]
[1758690413443,85.58560725,208.47,208.46,1e-08]
[1758690414043,47.62560725,208.47,208.46,1e-08]
[1758690414240,85.58560725,208.47,208.46,1e-08]
[1758690416844,47.62560725,208.47,208.46,1e-08]
[1758690417143,85.58560725,208.47,208.46,1e-08]
[1758690417671,82.35244727,208.47,208.46,1e-08]
[1758690418259,44.39244727,208.47,208.46,0.68000001]
[1758690418763,44.39244727,208.47,208.46,1e-08]
[1758690418955,86.20629808,208.47,208.46,1e-08]
[1758690420372,91.68149933,208.47,208.46,1e-08]
[1758690422377,91.06149933,208.47,208.46,1e-08]
[1758690422963,91.68149933,208.47,208.46,1e-08]
[1758690423278,91.06149933,208.47,208.46,1e-08]
[1758690423471,91.68149933,208.47,208.46,1e-08]
[1758690423673,53.72149933,208.47,208.46,1e-08]
[1758690423878,91.68149933,208.47,208.46,1e-08]
[1758690425080,39.59559401,208.43,208.4,0.2]
[1758690425278,13.59559401,208.41,208.4,1e-08]
[1758690425469,54.78944482,208.41,208.4,1e-08]
[1758690425669,54.78944482,208.41,208.39,1e-08]
[1758690425867,16.82969083,208.4,208.39,1e-08]
[1758690426467,21.62815532,208.4,208.39,1e-08]
[1758690426860,22.24815532,208.4,208.39,1e-08]
[1758690427055,39.59559401,208.36,208.35,1e-08]
[1758690427357,77.55559401,208.36,208.35,1e-08]
[1758690427765,78.17559401,208.36,208.35,1e-08]
[1758690428484,82.97497968,208.36,208.35,1e-08]
[1758690429359,85.58266502,208.36,208.35,1e-08]
[1758690429785,48.28768211,208.36,208.35,1e-08]
[1758690429985,86.24768211,208.36,208.35,0.68000001]
[1758690431082,82.35497968,208.36,208.35,0.68000001]
[1758690433564,82.35497968,208.36,208.35,1e-08]
[1758690435084,82.35497968,208.36,208.35,0.69000001]
[1758690435663,82.97497968,208.36,208.35,1e-08]
[1758690435863,82.35497968,208.36,208.35,1e-08]
[1758690437264,44.39497968,208.36,208.35,0.69000001]
[1758690437573,82.37497968,208.36,208.35,1e-08]
[1758690438185,82.37497968,208.36,208.35,0.69000001]
[1758690439873,44.39497968,208.36,208.35,0.69000001]
[1758690440072,82.37497968,208.36,208.35,0.69000001]
[1758690440269,83.57720039,208.36,208.35,0.69000001]
[1758690441191,83.57720039,208.36,208.35,1e-08]
[1758690444497,45.59720039,208.36,208.35,0.67000001]
[1758690444687,83.55720039,208.36,208.35,0.67000001]
[1758690446078,45.59720039,208.36,208.35,0.67000001]
[1758690446481,4.79844529,208.41,208.35,0.67000001]
[1758690446681,13.59559401,208.39,208.35,0.67000001]
[1758690446895,39.59559401,208.39,208.35,0.67000001]
[1758690447374,44.39439835,208.39,208.35,0.67000001]
[1758690447788,13.59559401,208.39,208.35,0.67000001]
[1758690447995,13.59559401,208.41,208.35,0.67000001]
[1758690448201,13.59559401,208.41,208.35,5.46960973]
[1758690448389,26.0,208.38,208.36,0.67]
[1758690449090,13.59559401,208.52,208.37,1.53518525]
[1758690449292,16.78576566,208.51,208.41,6.33341949]
[1758690449493,4.79593304,208.51,208.42,0.67]
[1758690449678,42.75593304,208.51,208.44,1.53518525]
[1758690449881,42.75593304,208.51,208.45,0.67]
[1758690449882,13.59559401,208.5,208.45,0.67]
[1758690450093,13.59559401,208.5,208.45,2.20518525]
[1758690450300,13.59559401,208.5,208.46,0.67]
[1758690450505,13.59559401,208.48,208.47,0.67]
[1758690450681,13.59559401,208.48,208.4,16.79462284]
[1758690450883,39.59559401,208.48,208.44,1.53518525]
[1758690451095,39.59559401,208.48,208.44,6.33258649]
[1758690451282,39.59559401,208.48,208.45,0.67]
[1758690452105,13.59559401,208.52,208.47,1.53518525]
[1758690452310,13.59559401,208.52,208.48,0.67]
[1758690452498,13.59559401,208.53,208.48,0.67]
[1758690453200,13.59559401,208.53,208.44,1.53518525]
[1758690453201,4.79570305,208.52,208.44,1.53518525]
[1758690453513,4.79570305,208.52,208.49,0.67]
[1758690456599,33.6122116,208.68,208.62,0.67]
[1758690456792,0.1,208.68,208.63,1.53518525]
[1758690456993,0.1,208.68,208.64,0.67]
[1758690457206,0.1,208.68,208.65,0.67]
[1758690457602,0.1,208.68,208.66,0.67]
[1758690458109,13.69559401,208.68,208.67,0.67]
[1758690459326,13.59559401,208.67,208.63,0.67]
[1758690459491,18.3879387,208.67,208.63,0.67]
[1758690459802,13.59559401,208.63,208.59,0.67]
[1758690460195,13.59559401,208.63,208.6,0.67]
[1758690460616,13.59559401,208.63,208.61,0.67]
[1758690460821,13.59559401,208.63,208.62,0.67]
[1758690464510,26.0,208.64,208.62,0.67]
[1758690464692,26.0,208.65,208.62,0.67]
[1758690464896,26.0,208.65,208.55,11.98721923]
[1758690465117,26.0,208.65,208.62,0.67]
[1758690465693,13.59559401,208.64,208.6,0.67]
[1758690465915,13.59559401,208.64,208.61,0.67]
[1758690466116,13.59559401,208.64,208.62,0.67]
[1758690466327,13.59559401,208.64,208.59,0.67]
[1758690466703,4.79317451,208.63,208.59,0.67]
[1758690466901,5.50317451,208.63,208.57,0.67]
[1758690467103,4.79317451,208.63,208.57,0.67]
[1758690469111,4.79317451,208.63,208.48,4.79502489]
[1758690469112,40.30559401,208.62,208.54,0.67]
[1758690469730,26.0,208.59,208.54,0.67]
[1758690470208,30.79406054,208.6,208.55,0.67]
[1758690470420,26.0,208.6,208.56,0.67]
[1758690470615,26.0,208.6,208.57,0.71]
[1758690470845,0.68,208.64,208.58,0.71]
[1758690471135,13.59559401,208.63,208.58,4.39118458]
[1758690471440,13.59559401,208.63,208.59,0.71]
[1758690473635,18.38890621,208.63,208.57,0.71]
[1758690474432,18.38890621,208.63,208.57,4.39118458]
[1758690474940,18.38890621,208.63,208.58,0.71]
[1758690476615,0.68,208.62,208.54,0.71]
[1758690476932,13.59559401,208.59,208.51,6.35458386]
[1758690477122,14.27559401,208.59,208.51,6.35458386]
[1758690477953,5.4733122,208.63,208.56,5.64458386]
[1758690478124,26.0,208.61,208.58,5.64458386]
[1758690478319,26.0,208.61,208.59,0.71]
[1758690479021,26.0,208.61,208.58,5.64458386]
[1758690479022,26.0,208.61,208.56,6.35458386]
[1758690479227,26.0,208.61,208.57,0.71]
[1758690479432,13.59559401,208.63,208.57,6.35458386]
[1758690479754,13.59559401,208.63,208.58,5.64458386]
[1758690479917,13.59559401,208.63,208.58,6.35458386]
[1758690480520,26.0,208.6,208.5,11.98800622]
[1758690480722,26.0,208.6,208.54,5.64458386]
[1758690480919,26.0,208.6,208.55,5.64458386]
[1758690481129,26.0,208.6,208.56,0.71]
[1758690481332,26.0,208.6,208.57,0.71]
[1758690481532,26.0,208.6,208.58,0.71]
[1758690481719,26.0,208.6,208.55,5.64458386]
[1758690481920,26.0,208.6,208.56,0.71]
[1758690482119,26.0,208.6,208.54,5.64458386]
[1758690482440,26.0,208.6,208.55,6.35458386]
[1758690482647,39.59559401,208.63,208.58,5.64458386]
[1758690482843,39.59559401,208.63,208.59,0.71]
[1758690483046,45.06878242,208.63,208.55,5.5049711]
[1758690483217,45.06878242,208.63,208.56,6.35458386]
[1758690483616,13.59559401,208.61,208.55,5.64458386]
[1758690483851,13.59559401,208.61,208.55,6.35458386]
[1758690484051,13.59559401,208.62,208.56,0.71]
[1758690484345,13.59559401,208.62,208.56,6.35458386]
[1758690484743,4.79363405,208.61,208.56,0.71]
[1758690484926,4.79363405,208.61,208.56,6.35458386]
[1758690485819,4.79363405,208.61,208.57,0.71]
[1758690486247,4.79363405,208.61,208.55,5.64458386]
[1758690486448,5.47363405,208.61,208.55,6.35458386]
[1758690486644,5.47363405,208.61,208.55,0.71]
[1758690487630,4.79363405,208.61,208.55,6.35458386]
[1758690487845,4.79363405,208.61,208.56,5.64458386]
[1758690488049,4.79363405,208.61,208.57,0.71]
[1758690488353,13.59559401,208.62,208.58,6.35458386]
[1758690488533,133.9,208.64,208.61,5.64458386]
[1758690488720,13.59559401,208.69,208.63,5.64458386]
[1758690488925,0.68,208.73,208.65,5.64458386]
[1758690489124,13.59559401,208.72,208.66,6.35458386]
[1758690489339,26.0,208.69,208.66,6.35458386]
[1758690489542,5.47109363,208.73,208.67,6.35458386]
[1758690489755,4.79113124,208.72,208.67,6.35458386]
[1758690490056,13.59559401,208.72,208.67,6.35458386]
[1758690490248,37.9,208.76,208.67,11.14683957]
[1758690490249,13.59559401,208.75,208.67,11.14683957]
[1758690490542,4.79068839,208.74,208.67,11.14683957]
[1758690490933,4.79088749,208.73,208.67,11.14683957]
[1758690491348,30.79088749,208.73,208.67,11.14683957]
[1758690491735,4.89204578,208.68,208.63,0.71]
[1758690491931,30.89204578,208.68,208.6,6.35458386]
[1758690492136,0.68,208.67,208.6,6.35458386]
[1758690492539,0.68,208.67,208.6,0.71]
[1758690492846,13.59559401,208.66,208.6,0.71]
[1758690493055,13.59559401,208.66,208.6,6.35458386]
[1758690493454,30.89204578,208.68,208.61,5.64458386]
[1758690493664,13.59559401,208.67,208.61,0.66]
[1758690494032,30.89204578,208.68,208.62,10.43798813]
[1758690494225,26.1,208.68,208.63,6.30458386]
[1758690494431,26.1,208.68,208.64,0.66]
[1758690494640,0.1,208.68,208.66,5.64458386]
[1758690494858,0.1,208.68,208.67,0.66]
[1758690495354,0.1,208.68,208.65,6.30458386]
[1758690495657,0.1,208.68,208.66,0.66]
[1758690496336,0.1,208.68,208.67,0.66]
[1758690496953,0.1,208.68,208.67,6.30458386]
[1758690497958,0.1,208.68,208.67,11.09683957]
[1758690502164,0.1,208.68,208.67,5.45225571]
[1758690502346,0.1,208.68,208.67,11.09683957]
[1758690502548,0.1,208.68,208.67,7.84393815]
[1758690503034,0.1,208.68,208.66,7.18412788]
[1758690503557,0.1,208.68,208.67,0.66]
[1758690503947,0.1,208.68,208.67,3.05168244]
[1758690505068,0.1,208.68,208.67,7.84393815]
[1758690511157,0.1,208.68,208.67,45.70393815]
[1758690513696,0.1,208.68,208.67,45.04393815]
[1758690513983,0.1,208.68,208.67,37.86]
[1758690515769,0.78,208.68,208.67,37.86]
[1758690516173,0.1,208.68,208.67,37.86]
[1758690516868,0.78,208.68,208.67,37.86]
[1758690517763,5.57202606,208.68,208.67,37.86]
[1758690517995,0.1,208.68,208.65,37.86]
[1758690518499,0.1,208.68,208.66,3.05168244]
[1758690519401,0.1,208.68,208.66,7.18395903]
[1758690519605,0.1,208.68,208.67,0.66]
[1758690519781,0.1,208.68,208.66,7.84395903]
[1758690519967,0.1,208.68,208.66,7.18395903]
[1758690520166,0.1,208.68,208.65,45.04437912]
[1758690520373,0.1,208.68,208.65,42.65269668]
[1758690520888,0.1,208.68,208.65,37.86]
[1758690521280,13.59559401,208.72,208.66,23.90266407]
[1758690523379,13.63559401,208.72,208.66,23.90266407]
[1758690523790,16.03114786,208.72,208.66,23.90266407]
[1758690523989,20.82225556,208.72,208.66,23.90266407]
[1758690524711,0.04,208.71,208.64,23.56512717]
[1758690525004,0.04,208.7,208.63,23.16449288]
[1758690525485,0.04,208.7,208.63,27.95764557]
[1758690525804,20.82225556,208.72,208.65,23.30240235]
[1758690526403,0.04,208.71,208.65,23.30240235]
[1758690526699,0.04,208.71,208.64,23.56512717]
[1758690526893,0.04,208.71,208.63,23.16449288]
[1758690527210,0.04,208.7,208.63,23.16449288]
[1758690527418,0.04,208.69,208.63,23.16449288]
[1758690527579,0.04,208.68,208.6,28.4511571]
[1758690527787,0.04,208.68,208.62,23.50713162]
[1758690528107,0.04,208.68,208.64,23.56512717]
[1758690528304,0.04,208.68,208.62,23.50713162]
[1758690528597,0.04,208.68,208.64,23.56512717]
[1758690528820,13.59559401,208.71,208.68,11.64027122]
[1758690530105,13.59559401,208.71,208.64,23.56512717]
[1758690530310,13.59559401,208.71,208.64,24.22512717]
[1758690532327,13.59559401,208.71,208.62,23.50713162]
[1758690532524,13.59559401,208.69,208.6,23.65729505]
[1758690532723,39.59559401,208.66,208.61,0.04281517]
[1758690532933,39.59559401,208.66,208.57,0.69]
[1758690533235,77.45559401,208.66,208.57,0.69]
[1758690533630,77.45559401,208.66,208.55,38.55]
[1758690533809,77.45559401,208.66,208.53,0.69]
[1758690534011,26.0,208.57,208.5,0.69]
[1758690535606,26.0,208.53,208.48,0.69]
[1758690536112,26.0,208.53,208.49,0.69]
[1758690536312,26.0,208.53,208.5,0.69]
[1758690536732,26.0,208.53,208.43,37.86]
[1758690536733,26.0,208.53,208.48,0.69]
[1758690536935,26.0,208.53,208.49,0.69]
[1758690537237,37.86,208.6,208.5,0.69]
[1758690537433,26.0,208.56,208.5,0.69]
[1758690538519,13.59559401,208.65,208.52,1.53391705]
[1758690538736,13.59559401,208.63,208.53,0.69]
[1758690538920,26.0,208.6,208.53,0.69]
[1758690539227,13.59559401,208.63,208.53,0.69]
[1758690539434,13.59559401,208.63,208.53,7.0193276]
[1758690539740,13.59559401,208.63,208.54,0.69]
[1758690540114,26.0,208.6,208.54,0.69]
[1758690542631,26.0,208.6,208.51,1.53391705]
[1758690542829,26.0,208.6,208.51,2.22391705]
[1758690543141,26.0,208.6,208.5,44.18986162]
[1758690543342,26.0,208.6,208.52,0.69]
[1758690543644,26.0,208.56,208.52,0.69]
[1758690543824,26.0,208.56,208.5,38.55]
[1758690544030,26.0,208.56,208.5,0.69]
[1758690544223,26.0,208.56,208.46,6.33079835]
[1758690544224,26.0,208.56,208.46,0.69]
[1758690544451,26.0,208.55,208.46,0.69]
[1758690545151,26.0,208.54,208.46,5.48707983]
[1758690545643,26.0,208.54,208.47,0.69]
[1758690546142,26.0,208.54,208.45,0.69]
[1758690546841,39.59559401,208.53,208.45,0.69]
[1758690547225,39.59559401,208.53,208.41,0.69]
[1758690547632,39.59559401,208.53,208.39,0.89]
[1758690549947,39.59559401,208.53,208.39,0.2]
[1758690551435,39.59559401,208.48,208.39,0.2]
[1758690551642,26.0,208.43,208.39,0.2]
[1758690553645,26.0,208.42,208.39,0.2]
[1758690555553,133.9,208.45,208.4,0.72]
[1758690555732,133.9,208.45,208.39,3.89061839]
[1758690555933,26.0,208.42,208.4,0.72]
[1758690556144,26.0,208.42,208.41,0.72]
[1758690556535,26.0,208.42,208.39,0.92]
[1758690556735,26.0,208.42,208.39,0.2]
[1758690557647,26.0,208.42,208.4,4.41061839]
[1758690557854,26.0,208.42,208.4,0.72]
[1758690558435,26.0,208.42,208.41,0.72]
[1758690559068,3.81761176,208.49,208.41,9.20885263]
[1758690559361,13.59559401,208.52,208.44,3.69061839]
[1758690559535,26.0,208.49,208.45,0.72]
[1758690559742,37.86,208.53,208.46,0.72]
[1758690560250,26.0,208.5,208.46,0.72]
[1758690560755,26.0,208.5,208.46,0.69]
[1758690561353,26.0,208.5,208.46,3.69061839]
[1758690561544,26.0,208.5,208.47,0.69]
[1758690562444,26.0,208.5,208.45,0.69]
[1758690562667,26.0,208.5,208.46,0.69]
[1758690562960,26.0,208.5,208.43,8.48816929]
[1758690563158,26.0,208.5,208.44,0.69]
[1758690564241,26.0,208.5,208.44,5.48749902]
[1758690564854,26.0,208.5,208.45,0.69]
[1758690565347,26.0,208.5,208.46,0.69]
[1758690566061,26.0,208.5,208.47,0.69]
[1758690567036,26.0,208.5,208.48,0.69]
[1758690567654,133.9,208.54,208.49,0.69]
[1758690567854,133.9,208.54,208.51,3.69061839]
[1758690568040,133.9,208.54,208.52,0.69]